[Event "Early-Titled-Tuesday-Blitz-June-18-2024"]
[Site "Chess.com"]
[Date "2024.06.18"]
[Round "2"]
[White "GOGIEFF"]
[Black "Korchmar_Vasiliy"]
[Result "1-0"]
[WhiteElo "3017"]
[BlackElo "2654"]
[TimeControl "180+1"]
[EndTime "8:18:50 PDT"]
[Termination "GOGIEFF won on time"]

1. c4 {[%clk 0:03:00.9]} 1... c6 {[%clk 0:03:00]} 2. Nf3 {[%clk 0:02:59.9]} 2...
d5 {[%clk 0:03:00.3]} 3. e3 {[%clk 0:03:00.2]} 3... Nf6 {[%clk 0:03:00.5]} 4.
Nc3 {[%clk 0:03:00.4]} 4... e6 {[%clk 0:03:00.5]} 5. b3 {[%clk 0:02:58.8]} 5...
Bd6 {[%clk 0:03:00.4]} 6. Bb2 {[%clk 0:02:59]} 6... O-O {[%clk 0:03:00.7]} 7. d4
{[%clk 0:02:58.9]} 7... Nbd7 {[%clk 0:02:57.7]} 8. Bd3 {[%clk 0:02:58.8]} 8...
b6 {[%clk 0:02:56.8]} 9. O-O {[%clk 0:02:50.8]} 9... Bb7 {[%clk 0:02:57]} 10.
Rc1 {[%clk 0:02:36.5]} 10... Rc8 {[%clk 0:02:56]} 11. cxd5 {[%clk 0:02:31.7]}
11... exd5 {[%clk 0:02:54.2]} 12. Ne2 {[%clk 0:02:31.8]} 12... Qe7 {[%clk
0:02:46.8]} 13. Ng3 {[%clk 0:02:31.1]} 13... g6 {[%clk 0:02:47.4]} 14. Qe2
{[%clk 0:02:25.6]} 14... Rfe8 {[%clk 0:02:45.5]} 15. Ba6 {[%clk 0:02:25.4]}
15... Bxa6 {[%clk 0:02:33.1]} 16. Qxa6 {[%clk 0:02:26.3]} 16... Rc7 {[%clk
0:02:21.7]} 17. Rc2 {[%clk 0:02:16.2]} 17... h5 {[%clk 0:02:15.6]} 18. Rfc1
{[%clk 0:02:14.3]} 18... Ng4 {[%clk 0:02:13.7]} 19. Nf1 {[%clk 0:02:05.4]} 19...
h4 {[%clk 0:02:01.3]} 20. h3 {[%clk 0:02:02]} 20... Nh6 {[%clk 0:02:01.5]} 21.
Ne5 {[%clk 0:01:34.5]} 21... Bxe5 {[%clk 0:01:17.3]} 22. dxe5 {[%clk 0:01:35.4]}
22... Nf5 {[%clk 0:01:17.8]} 23. Qa4 {[%clk 0:01:15.2]} 23... Nc5 {[%clk
0:00:57.4]} 24. Rxc5 {[%clk 0:01:05.1]} 24... bxc5 {[%clk 0:00:56.3]} 25. Nh2
{[%clk 0:01:06]} 25... d4 {[%clk 0:00:43.3]} 26. Ng4 {[%clk 0:01:02.7]} 26...
Rb8 {[%clk 0:00:40.9]} 27. e4 {[%clk 0:00:54.5]} 27... Ng7 {[%clk 0:00:34]} 28.
Qc4 {[%clk 0:00:50.4]} 28... Ne6 {[%clk 0:00:31]} 29. Qe2 {[%clk 0:00:48.4]}
29... Qg5 {[%clk 0:00:27.1]} 30. Rf1 {[%clk 0:00:46.2]} 30... Kg7 {[%clk
0:00:21.5]} 31. Bc1 {[%clk 0:00:45.7]} 31... Qh5 {[%clk 0:00:16.9]} 32. f4
{[%clk 0:00:44.5]} 32... d3 {[%clk 0:00:07.8]} 33. Qxd3 {[%clk 0:00:43.6]} 33...
Rd8 {[%clk 0:00:08.4]} 34. Qc3 {[%clk 0:00:43.3]} 34... Nd4 {[%clk 0:00:06.3]}
35. Re1 {[%clk 0:00:39.2]} 35... a5 {[%clk 0:00:02.1]} 36. Qxa5 {[%clk
0:00:37.2]} 36... Rcd7 {[%clk 0:00:01.4]} 37. Qxc5 {[%clk 0:00:37.4]} 37... Ne6
{[%clk 0:00:01.8]} 38. Qc2 {[%clk 0:00:35.7]} 38... Rd3 {[%clk 0:00:02.1]} 39.
Qf2 {[%clk 0:00:30.1]} 39... Rg3 {[%clk 0:00:01.9]} 40. f5 {[%clk 0:00:24.3]}
40... gxf5 {[%clk 0:00:01.6]} 41. exf5 {[%clk 0:00:24.4]} 41... Ng5 {[%clk
0:00:02]} 42. Kh2 {[%clk 0:00:20.8]} 42... Rdd3 {[%clk 0:00:01.4]} 43. Re3
{[%clk 0:00:19.8]} 43... Rdxe3 {[%clk 0:00:01.4]} 44. Bxe3 {[%clk 0:00:19.5]}
44... Ne4 {[%clk 0:00:01.6]} 45. Qb2 {[%clk 0:00:19.2]} 45... Qxf5 {[%clk
0:00:01.5]} 46. e6+ {[%clk 0:00:19.8]} 46... f6 {[%clk 0:00:01.9]} 47. e7 {[%clk
0:00:17.1]} 47... Nd6 {[%clk 0:00:01.8]} 48. Qd2 {[%clk 0:00:15.5]} 48... Qd5
{[%clk 0:00:01.3]} 49. Qxd5 {[%clk 0:00:14.8]} 49... cxd5 {[%clk 0:00:01.5]} 50.
Bf4 {[%clk 0:00:15.7]} 1-0

[Event "Early-Titled-Tuesday-Blitz-June-18-2024"]
[Site "Chess.com"]
[Date "2024.06.18"]
[Round "2"]
[White "ChessFanNM"]
[Black "LLariMarc"]
[Result "1-0"]
[WhiteElo "2317"]
[BlackElo "2502"]
[TimeControl "180+1"]
[EndTime "8:18:52 PDT"]
[Termination "ChessFanNM won by resignation"]

1. Nf3 {[%clk 0:02:49.2]} 1... f5 {[%clk 0:02:58.6]} 2. d3 {[%clk 0:02:48.6]}
2... Nf6 {[%clk 0:02:55.6]} 3. e4 {[%clk 0:02:48.2]} 3... fxe4 {[%clk
0:02:52.7]} 4. dxe4 {[%clk 0:02:47.8]} 4... Nxe4 {[%clk 0:02:41.6]} 5. Bd3
{[%clk 0:02:45.7]} 5... Nf6 {[%clk 0:02:41.1]} 6. Ng5 {[%clk 0:02:40.7]} 6... g6
{[%clk 0:02:07.5]} 7. Nxh7 {[%clk 0:02:32.7]} 7... Rxh7 {[%clk 0:02:07.1]} 8.
Bxg6+ {[%clk 0:02:32.4]} 8... Rf7 {[%clk 0:02:07.8]} 9. Bg5 {[%clk 0:02:27.5]}
9... Bg7 {[%clk 0:02:05]} 10. O-O {[%clk 0:02:05.5]} 10... Kf8 {[%clk
0:02:04.5]} 11. Re1 {[%clk 0:01:53.3]} 11... d6 {[%clk 0:02:01.7]} 12. Nc3
{[%clk 0:01:36.6]} 12... Bg4 {[%clk 0:01:54.8]} 13. Qd2 {[%clk 0:01:26.3]} 13...
Bh5 {[%clk 0:01:54.7]} 14. Bxf7 {[%clk 0:01:25.6]} 14... Kxf7 {[%clk 0:01:49.9]}
15. Nd5 {[%clk 0:01:21.6]} 15... Nbd7 {[%clk 0:01:47.9]} 16. Rxe7+ {[%clk
0:01:17.7]} 16... Qxe7 {[%clk 0:01:42.6]} 17. Nxe7 {[%clk 0:01:17.5]} 17... Kxe7
{[%clk 0:01:43.5]} 18. Re1+ {[%clk 0:01:17.1]} 18... Kf7 {[%clk 0:01:42.8]} 19.
Qb4 {[%clk 0:01:05.8]} 19... Nb6 {[%clk 0:01:26.6]} 20. Qb3+ {[%clk 0:01:00.5]}
20... Kg6 {[%clk 0:01:22.2]} 21. Bxf6 {[%clk 0:00:58.7]} 21... Bxf6 {[%clk
0:01:18.8]} 22. Qd3+ {[%clk 0:00:55.4]} 22... Kg7 {[%clk 0:01:15.8]} 23. h3
{[%clk 0:00:55.4]} 23... Re8 {[%clk 0:01:06.8]} 24. Qg3+ {[%clk 0:00:54.5]}
24... Kh7 {[%clk 0:01:03.7]} 25. Rxe8 {[%clk 0:00:53]} 25... Bxe8 {[%clk
0:01:04.6]} 26. Qd3+ {[%clk 0:00:50.5]} 26... Bg6 {[%clk 0:01:02]} 27. Qf3
{[%clk 0:00:50.5]} 27... Bg7 {[%clk 0:00:35.9]} 28. Qxb7 {[%clk 0:00:49.5]}
28... c5 {[%clk 0:00:36.5]} 29. c3 {[%clk 0:00:48.8]} 29... Na4 {[%clk
0:00:21.3]} 30. Qb3 {[%clk 0:00:42.8]} 30... Nb6 {[%clk 0:00:20]} 31. a4 {[%clk
0:00:42.4]} 31... c4 {[%clk 0:00:17.2]} 32. Qb5 {[%clk 0:00:41.7]} 32... Nc8
{[%clk 0:00:10]} 33. Qxc4 {[%clk 0:00:41.1]} 33... Nb6 {[%clk 0:00:08.8]} 34.
Qb5 {[%clk 0:00:40.6]} 34... Nc8 {[%clk 0:00:08.2]} 35. a5 {[%clk 0:00:40.2]}
35... Ne7 {[%clk 0:00:08.6]} 36. a6 {[%clk 0:00:39.4]} 36... Be4 {[%clk
0:00:07.8]} 37. Qh5+ {[%clk 0:00:38.2]} 37... Kg8 {[%clk 0:00:07.8]} 38. Qe8+
{[%clk 0:00:37.8]} 38... Bf8 {[%clk 0:00:08.3]} 39. Qb8 {[%clk 0:00:34.7]} 39...
Nc6 {[%clk 0:00:08.2]} 40. Qc7 {[%clk 0:00:32.1]} 40... Be7 {[%clk 0:00:07.7]}
41. Qd7 {[%clk 0:00:26.9]} 41... Kf7 {[%clk 0:00:07.4]} 42. f3 {[%clk
0:00:25.9]} 42... Bd5 {[%clk 0:00:07.9]} 43. Qf5+ {[%clk 0:00:24.7]} 43... Ke8
{[%clk 0:00:07.2]} 44. Qxd5 {[%clk 0:00:24.9]} 44... Kd7 {[%clk 0:00:08.1]} 45.
b4 {[%clk 0:00:24.1]} 45... Kc7 {[%clk 0:00:07.8]} 46. b5 {[%clk 0:00:23.8]}
46... Na5 {[%clk 0:00:08.5]} 47. Qe6 {[%clk 0:00:23.7]} 47... Bd8 {[%clk
0:00:08]} 48. Qf7+ {[%clk 0:00:23.4]} 48... Kb6 {[%clk 0:00:08.3]} 49. Qd7
{[%clk 0:00:23]} 49... Bc7 {[%clk 0:00:08.7]} 50. h4 {[%clk 0:00:22.8]} 50...
Bb8 {[%clk 0:00:08.3]} 51. h5 {[%clk 0:00:22.4]} 51... Kc5 {[%clk 0:00:07.8]}
52. h6 {[%clk 0:00:22]} 52... Kc4 {[%clk 0:00:08.5]} 53. h7 {[%clk 0:00:21.3]}
53... Kxc3 {[%clk 0:00:08.9]} 54. h8=Q+ {[%clk 0:00:20.4]} 54... Kb4 {[%clk
0:00:09.8]} 55. Qxb8 {[%clk 0:00:20.3]} 1-0

[Event "Early-Titled-Tuesday-Blitz-June-18-2024"]
[Site "Chess.com"]
[Date "2024.06.18"]
[Round "2"]
[White "Likvidator228"]
[Black "nitpicker"]
[Result "1-0"]
[WhiteElo "2538"]
[BlackElo "2324"]
[TimeControl "180+1"]
[EndTime "8:18:55 PDT"]
[Termination "Likvidator228 won on time"]

1. c4 {[%clk 0:02:57.3]} 1... e5 {[%clk 0:02:59.2]} 2. g3 {[%clk 0:02:56.6]}
2... Nf6 {[%clk 0:02:58.7]} 3. Bg2 {[%clk 0:02:57]} 3... d5 {[%clk 0:02:58.8]}
4. cxd5 {[%clk 0:02:57.9]} 4... Nxd5 {[%clk 0:02:58.9]} 5. Nc3 {[%clk
0:02:58.6]} 5... Nf6 {[%clk 0:02:57.8]} 6. Nf3 {[%clk 0:02:58.3]} 6... Nc6
{[%clk 0:02:57.8]} 7. O-O {[%clk 0:02:58.1]} 7... Be7 {[%clk 0:02:55.7]} 8. d3
{[%clk 0:02:56.1]} 8... h6 {[%clk 0:02:56]} 9. a3 {[%clk 0:02:55.9]} 9... a5
{[%clk 0:02:50.9]} 10. Be3 {[%clk 0:02:55.2]} 10... O-O {[%clk 0:02:46.2]} 11.
Rc1 {[%clk 0:02:55.3]} 11... Be6 {[%clk 0:02:42.3]} 12. Na4 {[%clk 0:02:52.8]}
12... Nd4 {[%clk 0:02:37.8]} 13. Nxd4 {[%clk 0:02:46.8]} 13... exd4 {[%clk
0:02:37.1]} 14. Bf4 {[%clk 0:02:47.1]} 14... c6 {[%clk 0:02:35.3]} 15. Nc5
{[%clk 0:02:42.1]} 15... Bd5 {[%clk 0:02:29.3]} 16. Nxb7 {[%clk 0:02:33.7]}
16... Qb6 {[%clk 0:02:09.1]} 17. Nd6 {[%clk 0:02:33.4]} 17... Qxb2 {[%clk
0:01:48.5]} 18. Nc4 {[%clk 0:02:05.2]} 18... Bxc4 {[%clk 0:01:20.6]} 19. Rxc4
{[%clk 0:02:04.8]} 19... Nd5 {[%clk 0:01:20.4]} 20. Bc1 {[%clk 0:01:59.2]} 20...
Qb5 {[%clk 0:01:17]} 21. a4 {[%clk 0:01:52.1]} 21... Qb6 {[%clk 0:01:13.3]} 22.
Qc2 {[%clk 0:01:45.2]} 22... Nb4 {[%clk 0:01:04.9]} 23. Qb2 {[%clk 0:01:42.2]}
23... Rfd8 {[%clk 0:00:39.5]} 24. Bd2 {[%clk 0:01:40.8]} 24... Rac8 {[%clk
0:00:36.7]} 25. Rfc1 {[%clk 0:01:40]} 25... c5 {[%clk 0:00:36.9]} 26. Qb3 {[%clk
0:01:35.9]} 26... Nd5 {[%clk 0:00:26.2]} 27. Qxb6 {[%clk 0:01:19.7]} 27... Nxb6
{[%clk 0:00:25.8]} 28. Bxa5 {[%clk 0:01:15.6]} 28... Nxc4 {[%clk 0:00:22.7]} 29.
Bxd8 {[%clk 0:01:15.9]} 29... Bxd8 {[%clk 0:00:21.9]} 30. Rxc4 {[%clk
0:01:15.3]} 30... Ba5 {[%clk 0:00:21.7]} 31. Bd5 {[%clk 0:01:09.2]} 31... Bb4
{[%clk 0:00:21.2]} 32. e4 {[%clk 0:01:08.1]} 32... Rc7 {[%clk 0:00:19.9]} 33.
Rc2 {[%clk 0:01:07]} 33... Kf8 {[%clk 0:00:19.8]} 34. f4 {[%clk 0:01:06.7]}
34... Ke7 {[%clk 0:00:19.6]} 35. e5 {[%clk 0:01:03.7]} 35... f6 {[%clk
0:00:17.8]} 36. Re2 {[%clk 0:00:59.7]} 36... fxe5 {[%clk 0:00:16.8]} 37. Rxe5+
{[%clk 0:00:59.1]} 37... Kd6 {[%clk 0:00:14.4]} 38. Bc4 {[%clk 0:00:58.9]} 38...
Ra7 {[%clk 0:00:13.8]} 39. Bb3 {[%clk 0:00:46.5]} 39... Re7 {[%clk 0:00:13.2]}
40. Rd5+ {[%clk 0:00:46]} 40... Kc6 {[%clk 0:00:12.9]} 41. Re5 {[%clk
0:00:34.2]} 41... Rxe5 {[%clk 0:00:10.6]} 42. fxe5 {[%clk 0:00:35.1]} 42... Bd2
{[%clk 0:00:10.1]} 43. Kg2 {[%clk 0:00:33]} 43... Bg5 {[%clk 0:00:09.2]} 44. Kf3
{[%clk 0:00:32.6]} 44... Bd8 {[%clk 0:00:07.8]} 45. Ke4 {[%clk 0:00:32.4]} 45...
g6 {[%clk 0:00:06.5]} 46. Bf7 {[%clk 0:00:31.4]} 46... g5 {[%clk 0:00:06.1]} 47.
Kf5 {[%clk 0:00:31]} 47... Ba5 {[%clk 0:00:04.3]} 48. Bc4 {[%clk 0:00:27.1]}
48... Kd7 {[%clk 0:00:03.8]} 49. Kf6 {[%clk 0:00:26.3]} 49... Bd8+ {[%clk
0:00:01]} 50. Kf7 {[%clk 0:00:25.3]} 50... Be7 {[%clk 0:00:01.2]} 51. Bb5+
{[%clk 0:00:22.6]} 51... Kd8 {[%clk 0:00:01.2]} 52. a5 {[%clk 0:00:22]} 52... c4
{[%clk 0:00:01.6]} 53. Bxc4 {[%clk 0:00:20.7]} 53... Bc5 {[%clk 0:00:01.8]} 54.
a6 {[%clk 0:00:20.9]} 54... Kd7 {[%clk 0:00:01]} 55. e6+ {[%clk 0:00:21]} 55...
Kd8 {[%clk 0:00:01.5]} 56. a7 {[%clk 0:00:21]} 1-0

[Event "Early-Titled-Tuesday-Blitz-June-18-2024"]
[Site "Chess.com"]
[Date "2024.06.18"]
[Round "2"]
[White "Mackster23"]
[Black "Tol_Tol"]
[Result "1-0"]
[WhiteElo "2731"]
[BlackElo "2366"]
[TimeControl "180+1"]
[EndTime "8:18:56 PDT"]
[Termination "Mackster23 won on time"]

1. e4 {[%clk 0:03:00.9]} 1... c5 {[%clk 0:02:59.6]} 2. Nf3 {[%clk 0:03:00.8]}
2... Nc6 {[%clk 0:03:00]} 3. d4 {[%clk 0:03:00.8]} 3... cxd4 {[%clk 0:03:00.4]}
4. Nxd4 {[%clk 0:03:01.7]} 4... Nf6 {[%clk 0:03:01.1]} 5. Nc3 {[%clk 0:03:01.8]}
5... e5 {[%clk 0:03:01.7]} 6. Ndb5 {[%clk 0:03:02]} 6... d6 {[%clk 0:03:02.2]}
7. Bg5 {[%clk 0:03:02.2]} 7... a6 {[%clk 0:03:02.7]} 8. Na3 {[%clk 0:03:02.7]}
8... b5 {[%clk 0:03:03.6]} 9. Nab1 {[%clk 0:03:03.1]} 9... Be6 {[%clk
0:02:57.2]} 10. a4 {[%clk 0:02:32.5]} 10... b4 {[%clk 0:02:57.1]} 11. Nd5 {[%clk
0:02:32.7]} 11... Bxd5 {[%clk 0:02:53.6]} 12. exd5 {[%clk 0:02:33.6]} 12... Nd4
{[%clk 0:02:38.2]} 13. Bd3 {[%clk 0:02:32.2]} 13... Be7 {[%clk 0:02:37.9]} 14.
Bxf6 {[%clk 0:02:31.9]} 14... Bxf6 {[%clk 0:02:37.8]} 15. c3 {[%clk 0:02:32.6]}
15... bxc3 {[%clk 0:02:30.9]} 16. bxc3 {[%clk 0:02:33.5]} 16... Qa5 {[%clk
0:02:31.3]} 17. O-O {[%clk 0:02:33.3]} 17... Nb5 {[%clk 0:02:16.7]} 18. Qc2
{[%clk 0:01:51.8]} 18... Nc7 {[%clk 0:02:08.7]} 19. Be4 {[%clk 0:01:41.4]} 19...
g6 {[%clk 0:02:05.8]} 20. Nd2 {[%clk 0:01:37.7]} 20... O-O {[%clk 0:02:01.1]}
21. Rfb1 {[%clk 0:01:24.2]} 21... Nxd5 {[%clk 0:01:28.2]} 22. Qd3 {[%clk
0:00:33]} 22... Nf4 {[%clk 0:01:09.5]} 23. Qxd6 {[%clk 0:00:29.6]} 23... Rad8
{[%clk 0:01:00.9]} 24. Qxf6 {[%clk 0:00:28.5]} 24... Rxd2 {[%clk 0:01:01]} 25.
h4 {[%clk 0:00:12.8]} 25... Qc5 {[%clk 0:00:58.5]} 26. Rf1 {[%clk 0:00:10.1]}
26... Ne2+ {[%clk 0:00:46.5]} 27. Kh2 {[%clk 0:00:09.9]} 27... Nxc3 {[%clk
0:00:47.1]} 28. Bf3 {[%clk 0:00:08]} 28... e4 {[%clk 0:00:38.3]} 29. Bg4 {[%clk
0:00:06.8]} 29... Nd5 {[%clk 0:00:30.7]} 30. Qe5 {[%clk 0:00:04.4]} 30... f5
{[%clk 0:00:17.3]} 31. Bd1 {[%clk 0:00:04.9]} 31... Qc7 {[%clk 0:00:16.9]} 32.
Qxc7 {[%clk 0:00:02.8]} 32... Nxc7 {[%clk 0:00:17.8]} 33. Bb3+ {[%clk
0:00:03.4]} 33... Kg7 {[%clk 0:00:17.5]} 34. Rac1 {[%clk 0:00:04.3]} 34... Rd7
{[%clk 0:00:14.1]} 35. Rc6 {[%clk 0:00:04.3]} 35... a5 {[%clk 0:00:11.5]} 36.
Rfc1 {[%clk 0:00:03.8]} 36... Nd5 {[%clk 0:00:11.8]} 37. R1c5 {[%clk 0:00:02.4]}
37... Nf4 {[%clk 0:00:09.1]} 38. Rb5 {[%clk 0:00:01]} 38... Rd2 {[%clk
0:00:08.4]} 39. Kg3 {[%clk 0:00:01]} 39... Nh5+ {[%clk 0:00:07]} 40. Kh2 {[%clk
0:00:01.7]} 40... Rxf2 {[%clk 0:00:06.9]} 41. Rb7+ {[%clk 0:00:02.3]} 41... Kh6
{[%clk 0:00:06.2]} 42. Rcc7 {[%clk 0:00:03]} 42... Rh8 {[%clk 0:00:06.5]} 43.
Bg8 {[%clk 0:00:02.9]} 43... Nf6 {[%clk 0:00:05.5]} 44. Be6 {[%clk 0:00:03.3]}
44... Ng4+ {[%clk 0:00:04.6]} 45. Kg3 {[%clk 0:00:03.9]} 45... e3 {[%clk
0:00:03.7]} 46. Bc4 {[%clk 0:00:03.2]} 1-0

[Event "Early-Titled-Tuesday-Blitz-June-18-2024"]
[Site "Chess.com"]
[Date "2024.06.18"]
[Round "2"]
[White "Artyom_ChessMate"]
[Black "yonaltimur"]
[Result "1-0"]
[WhiteElo "2540"]
[BlackElo "2336"]
[TimeControl "180+1"]
[EndTime "8:18:57 PDT"]
[Termination "Artyom_ChessMate won on time"]

1. e4 {[%clk 0:03:00.9]} 1... c5 {[%clk 0:02:58]} 2. Nc3 {[%clk 0:03:00.7]} 2...
Nc6 {[%clk 0:02:56.4]} 3. Bb5 {[%clk 0:02:58.6]} 3... Nd4 {[%clk 0:02:56.4]} 4.
Nf3 {[%clk 0:02:58.7]} 4... a6 {[%clk 0:02:50.7]} 5. Bd3 {[%clk 0:02:57.8]} 5...
e6 {[%clk 0:02:50.3]} 6. O-O {[%clk 0:02:57.3]} 6... Nxf3+ {[%clk 0:02:33.2]} 7.
Qxf3 {[%clk 0:02:58.2]} 7... d6 {[%clk 0:02:33.6]} 8. b3 {[%clk 0:02:57.2]} 8...
Nf6 {[%clk 0:02:33.5]} 9. Bb2 {[%clk 0:02:56.9]} 9... Be7 {[%clk 0:02:33.8]} 10.
Rae1 {[%clk 0:02:56.3]} 10... O-O {[%clk 0:02:33.6]} 11. e5 {[%clk 0:02:56.8]}
11... dxe5 {[%clk 0:02:33]} 12. Rxe5 {[%clk 0:02:57.7]} 12... Qc7 {[%clk
0:02:10.9]} 13. Rg5 {[%clk 0:02:53.4]} 13... g6 {[%clk 0:02:01.5]} 14. h4 {[%clk
0:02:16.6]} 14... Bd7 {[%clk 0:01:49.2]} 15. h5 {[%clk 0:02:09.8]} 15... Bc6
{[%clk 0:01:45.1]} 16. Qh3 {[%clk 0:02:06.5]} 16... Qf4 {[%clk 0:01:40.1]} 17.
hxg6 {[%clk 0:01:09.5]} 17... hxg6 {[%clk 0:00:26.6]} 18. Rg3 {[%clk 0:00:45.2]}
18... Kg7 {[%clk 0:00:19]} 19. Ne2 {[%clk 0:00:42.9]} 19... Qd6 {[%clk
0:00:18.7]} 20. Qg4 {[%clk 0:00:29.6]} 20... Rh8 {[%clk 0:00:13.1]} 21. Bxg6
{[%clk 0:00:26.7]} 21... Kf8 {[%clk 0:00:11.2]} 22. Bxf6 {[%clk 0:00:16.4]}
22... Bxf6 {[%clk 0:00:12.1]} 23. Be4 {[%clk 0:00:12.7]} 23... Ke7 {[%clk
0:00:10.8]} 24. Bxc6 {[%clk 0:00:12.3]} 24... Qxc6 {[%clk 0:00:10.6]} 25. Nf4
{[%clk 0:00:10.4]} 25... Qd6 {[%clk 0:00:07.5]} 26. Re1 {[%clk 0:00:10.1]} 26...
Rag8 {[%clk 0:00:07.3]} 27. Qf3 {[%clk 0:00:06.7]} 27... Rxg3 {[%clk 0:00:06.4]}
28. Qxg3 {[%clk 0:00:07.6]} 28... Qxd2 {[%clk 0:00:05.4]} 29. Qe3 {[%clk
0:00:07.1]} 29... Qxe3 {[%clk 0:00:05.3]} 30. Rxe3 {[%clk 0:00:08]} 30... Bd4
{[%clk 0:00:04.8]} 31. Rd3 {[%clk 0:00:07.8]} 31... Rd8 {[%clk 0:00:03.6]} 32.
Kf1 {[%clk 0:00:07.1]} 32... b5 {[%clk 0:00:04]} 33. Ne2 {[%clk 0:00:07.3]}
33... Bf6 {[%clk 0:00:03.8]} 34. Rxd8 {[%clk 0:00:07.2]} 34... Kxd8 {[%clk
0:00:04.7]} 35. Ke1 {[%clk 0:00:07.3]} 35... Ke7 {[%clk 0:00:05.4]} 36. Kd2
{[%clk 0:00:07.9]} 36... Kd6 {[%clk 0:00:06.3]} 37. Kd3 {[%clk 0:00:08.6]} 37...
Be5 {[%clk 0:00:06.5]} 38. f4 {[%clk 0:00:08.4]} 38... Bg7 {[%clk 0:00:06.4]}
39. c4 {[%clk 0:00:09.3]} 39... b4 {[%clk 0:00:04.5]} 40. Ng3 {[%clk 0:00:07.7]}
40... Kc6 {[%clk 0:00:01.5]} 41. Ne4 {[%clk 0:00:08]} 41... Bd4 {[%clk
0:00:02.2]} 42. Ng5 {[%clk 0:00:08.1]} 42... f6 {[%clk 0:00:01]} 43. Nxe6 {[%clk
0:00:08.1]} 43... Bc3 {[%clk 0:00:01.5]} 44. Nf8 {[%clk 0:00:06.1]} 44... Kd6
{[%clk 0:00:01.6]} 45. Ke4 {[%clk 0:00:05.3]} 1-0

[Event "Early-Titled-Tuesday-Blitz-June-18-2024"]
[Site "Chess.com"]
[Date "2024.06.18"]
[Round "2"]
[White "JiaHaoxiang"]
[Black "vugarrasulov"]
[Result "0-1"]
[WhiteElo "2648"]
[BlackElo "2981"]
[TimeControl "180+1"]
[EndTime "8:18:58 PDT"]
[Termination "vugarrasulov won by resignation"]

1. d4 {[%clk 0:02:59.8]} 1... Nf6 {[%clk 0:02:59.1]} 2. Nf3 {[%clk 0:02:38.3]}
2... g6 {[%clk 0:02:59]} 3. g3 {[%clk 0:02:15.3]} 3... Bg7 {[%clk 0:02:58.2]} 4.
Bg2 {[%clk 0:02:15]} 4... b5 {[%clk 0:02:55.7]} 5. a4 {[%clk 0:02:10.4]} 5... b4
{[%clk 0:02:55.1]} 6. c4 {[%clk 0:02:10.8]} 6... Bb7 {[%clk 0:02:53.1]} 7. b3
{[%clk 0:02:10.1]} 7... O-O {[%clk 0:02:50.3]} 8. Bb2 {[%clk 0:02:10.1]} 8... d6
{[%clk 0:02:48.5]} 9. Nbd2 {[%clk 0:02:08.5]} 9... Nbd7 {[%clk 0:02:48.5]} 10.
O-O {[%clk 0:02:03.7]} 10... a5 {[%clk 0:02:48.4]} 11. d5 {[%clk 0:01:57.5]}
11... c6 {[%clk 0:02:39.4]} 12. dxc6 {[%clk 0:01:40.2]} 12... Bxc6 {[%clk
0:02:40.3]} 13. Qc2 {[%clk 0:01:40.7]} 13... Nc5 {[%clk 0:02:37.8]} 14. Rad1
{[%clk 0:01:37.8]} 14... Qb6 {[%clk 0:02:35.1]} 15. Nd4 {[%clk 0:01:26.1]} 15...
Bxg2 {[%clk 0:02:34.8]} 16. Kxg2 {[%clk 0:01:26.4]} 16... Qb7+ {[%clk
0:02:34.4]} 17. N2f3 {[%clk 0:01:26.1]} 17... Rac8 {[%clk 0:02:31.2]} 18. Nb5
{[%clk 0:01:21.3]} 18... Rfd8 {[%clk 0:02:28.5]} 19. Kg1 {[%clk 0:01:19.7]}
19... Qe4 {[%clk 0:02:20.2]} 20. Qxe4 {[%clk 0:01:16.3]} 20... Nfxe4 {[%clk
0:02:21.1]} 21. Bxg7 {[%clk 0:01:16.1]} 21... Kxg7 {[%clk 0:02:22]} 22. Rb1
{[%clk 0:01:14.1]} 22... d5 {[%clk 0:02:20.6]} 23. cxd5 {[%clk 0:01:13]} 23...
Rxd5 {[%clk 0:02:21.5]} 24. Rfc1 {[%clk 0:01:13.4]} 24... Rcd8 {[%clk 0:02:16]}
25. Rc4 {[%clk 0:01:11.8]} 25... f5 {[%clk 0:02:10.2]} 26. Kg2 {[%clk
0:01:09.8]} 26... Kf6 {[%clk 0:02:08]} 27. e3 {[%clk 0:01:07.3]} 27... Rd1
{[%clk 0:02:01]} 28. Rxd1 {[%clk 0:01:06]} 28... Rxd1 {[%clk 0:02:01.9]} 29.
Nbd4 {[%clk 0:01:04.7]} 29... Rb1 {[%clk 0:01:51.4]} 30. Nd2 {[%clk 0:01:00.4]}
30... Rb2 {[%clk 0:01:40.1]} 31. Nxe4+ {[%clk 0:00:59.7]} 31... Nxe4 {[%clk
0:01:41]} 32. Nc6 {[%clk 0:00:52.7]} 32... Rxf2+ {[%clk 0:01:39.3]} 33. Kg1
{[%clk 0:00:52.6]} 33... Rb2 {[%clk 0:01:34.1]} 34. Nxa5 {[%clk 0:00:52.6]}
34... Nd2 {[%clk 0:01:34.5]} 35. Rxb4 {[%clk 0:00:51.8]} 35... Nf3+ {[%clk
0:01:34.7]} 36. Kf1 {[%clk 0:00:52.3]} 36... Nxh2+ {[%clk 0:01:35.3]} 37. Ke1
{[%clk 0:00:52.9]} 37... Nf3+ {[%clk 0:01:35.5]} 38. Kd1 {[%clk 0:00:53.5]}
38... h5 {[%clk 0:01:31.3]} 39. Nc4 {[%clk 0:00:51.2]} 39... Ra2 {[%clk
0:01:13.4]} 40. Rb5 {[%clk 0:00:40.8]} 40... g5 {[%clk 0:01:10.6]} 41. a5 {[%clk
0:00:31.6]} 41... h4 {[%clk 0:01:10.6]} 42. gxh4 {[%clk 0:00:32.1]} 42... gxh4
{[%clk 0:01:11.5]} 43. Rb8 {[%clk 0:00:19.8]} 43... h3 {[%clk 0:01:11.3]} 44.
Rh8 {[%clk 0:00:19.9]} 44... h2 {[%clk 0:01:11.6]} 45. b4 {[%clk 0:00:20.4]}
45... Kg5 {[%clk 0:00:59.9]} 46. Rh3 {[%clk 0:00:19.6]} 46... Ra4 {[%clk
0:00:48.5]} 47. Nd2 {[%clk 0:00:16.5]} 47... Ra1+ {[%clk 0:00:47]} 48. Kc2
{[%clk 0:00:15.8]} 48... Ra2+ {[%clk 0:00:43.3]} 49. Kc3 {[%clk 0:00:13.3]}
49... Nxd2 {[%clk 0:00:40.8]} 50. b5 {[%clk 0:00:08.8]} 50... Rxa5 {[%clk
0:00:36.4]} 51. Rxh2 {[%clk 0:00:08.6]} 51... Rxb5 {[%clk 0:00:33.8]} 52. Rxd2
{[%clk 0:00:08.9]} 52... Kg4 {[%clk 0:00:33.3]} 53. Rd7 {[%clk 0:00:08.7]} 53...
e5 {[%clk 0:00:32.8]} 54. Rf7 {[%clk 0:00:08.9]} 54... e4 {[%clk 0:00:32.7]} 55.
Kd2 {[%clk 0:00:09.1]} 55... Kf3 {[%clk 0:00:32.9]} 56. Rf8 {[%clk 0:00:08.1]}
56... Rd5+ {[%clk 0:00:33]} 57. Ke1 {[%clk 0:00:08.1]} 57... Kxe3 {[%clk
0:00:33.9]} 58. Rxf5 {[%clk 0:00:08.3]} 58... Rxf5 {[%clk 0:00:33.6]} 0-1